[Event "Early-Titled-Tuesday-Blitz-March-19-2024"]
[Site "Chess.com"]
[Date "2024.03.19"]
[Round "11"]
[White "Oleksandr_Bortnyk"]
[Black "AnishOnYoutube"]
[Result "1-0"]
[WhiteElo "3067"]
[BlackElo "3042"]
[TimeControl "180+1"]
[EndTime "10:06:44 PDT"]
[Termination "Oleksandr_Bortnyk won on time"]

1. e4 {[%clk 0:02:58.6]} 1... e5 {[%clk 0:03:00.2]} 2. Bc4 {[%clk 0:02:55.1]}
2... Nf6 {[%clk 0:02:57]} 3. d3 {[%clk 0:02:55.6]} 3... Nc6 {[%clk 0:02:46.6]}
4. Nc3 {[%clk 0:02:52.8]} 4... Bb4 {[%clk 0:02:46.7]} 5. Bd2 {[%clk 0:02:51.2]}
5... O-O {[%clk 0:02:43.5]} 6. Nge2 {[%clk 0:02:47.7]} 6... Na5 {[%clk
0:02:36.5]} 7. O-O {[%clk 0:02:45.2]} 7... Nxc4 {[%clk 0:02:35.4]} 8. dxc4
{[%clk 0:02:46.1]} 8... h6 {[%clk 0:02:24.2]} 9. Ng3 {[%clk 0:02:38.2]} 9... d6
{[%clk 0:02:21.7]} 10. a3 {[%clk 0:02:32.3]} 10... Bxc3 {[%clk 0:02:20.3]} 11.
Bxc3 {[%clk 0:02:32.1]} 11... Bg4 {[%clk 0:02:17.3]} 12. f3 {[%clk 0:02:27.4]}
12... Be6 {[%clk 0:02:17.4]} 13. b3 {[%clk 0:02:27.7]} 13... Nd7 {[%clk
0:02:17.3]} 14. f4 {[%clk 0:02:20.9]} 14... exf4 {[%clk 0:02:16.3]} 15. Rxf4
{[%clk 0:02:16.6]} 15... Qg5 {[%clk 0:02:10.2]} 16. Qd2 {[%clk 0:01:58.6]} 16...
Ne5 {[%clk 0:02:07.4]} 17. Raf1 {[%clk 0:01:55]} 17... Ng6 {[%clk 0:02:05.8]}
18. R4f2 {[%clk 0:01:12]} 18... Qxd2 {[%clk 0:02:05.9]} 19. Rxd2 {[%clk
0:01:12.3]} 19... f6 {[%clk 0:02:05.6]} 20. a4 {[%clk 0:01:04.5]} 20... b6
{[%clk 0:02:01]} 21. a5 {[%clk 0:01:04.5]} 21... Bd7 {[%clk 0:01:56.8]} 22. b4
{[%clk 0:00:44.5]} 22... Be6 {[%clk 0:01:53.2]} 23. c5 {[%clk 0:00:37.6]} 23...
dxc5 {[%clk 0:01:52.7]} 24. bxc5 {[%clk 0:00:38.5]} 24... bxc5 {[%clk
0:01:53.2]} 25. Nf5 {[%clk 0:00:37.3]} 25... Rae8 {[%clk 0:01:28.1]} 26. Rb1
{[%clk 0:00:32.1]} 26... Bc8 {[%clk 0:01:23.6]} 27. Ng3 {[%clk 0:00:29.4]} 27...
Nf4 {[%clk 0:01:16.6]} 28. h4 {[%clk 0:00:22.5]} 28... Kf7 {[%clk 0:01:04.5]}
29. Rb5 {[%clk 0:00:21.4]} 29... Ne6 {[%clk 0:01:02.5]} 30. Nf5 {[%clk
0:00:21.9]} 30... Rd8 {[%clk 0:01:00.1]} 31. Rxd8 {[%clk 0:00:19.3]} 31... Rxd8
{[%clk 0:01:01]} 32. Ne3 {[%clk 0:00:12.8]} 32... Ba6 {[%clk 0:00:58.5]} 33. Rb1
{[%clk 0:00:12.6]} 33... Nd4 {[%clk 0:00:54.4]} 34. Kf2 {[%clk 0:00:12.8]} 34...
Nb5 {[%clk 0:00:46.2]} 35. Bb2 {[%clk 0:00:10.4]} 35... Re8 {[%clk 0:00:39.3]}
36. e5 {[%clk 0:00:04.4]} 36... fxe5 {[%clk 0:00:39.7]} 37. Re1 {[%clk
0:00:04.4]} 37... e4 {[%clk 0:00:36.1]} 38. Nf5 {[%clk 0:00:03.5]} 38... g5
{[%clk 0:00:22.5]} 39. Nxh6+ {[%clk 0:00:03.2]} 39... Kg6 {[%clk 0:00:22.7]} 40.
hxg5 {[%clk 0:00:04.1]} 40... Nd6 {[%clk 0:00:18.2]} 41. Bf6 {[%clk 0:00:04.7]}
41... Bc8 {[%clk 0:00:14.9]} 42. g4 {[%clk 0:00:04.7]} 42... Nc4 {[%clk
0:00:13.5]} 43. Kg3 {[%clk 0:00:05.2]} 43... e3 {[%clk 0:00:12.8]} 44. Kf4
{[%clk 0:00:05.3]} 44... e2 {[%clk 0:00:10.4]} 45. Nf5 {[%clk 0:00:05.9]} 45...
Bb7 {[%clk 0:00:08.7]} 46. Ne7+ {[%clk 0:00:05.6]} 46... Kf7 {[%clk 0:00:08]}
47. Rxe2 {[%clk 0:00:06.3]} 1-0

[Event "Early-Titled-Tuesday-Blitz-March-19-2024"]
[Site "Chess.com"]
[Date "2024.03.19"]
[Round "11"]
[White "Eagle_2019"]
[Black "2KTNGO"]
[Result "1-0"]
[WhiteElo "2862"]
[BlackElo "2587"]
[TimeControl "180+1"]
[EndTime "10:06:44 PDT"]
[Termination "Eagle_2019 won by resignation"]

1. d4 {[%clk 0:03:00.9]} 1... Nf6 {[%clk 0:02:59]} 2. Nf3 {[%clk 0:03:00]} 2...
c5 {[%clk 0:02:55.8]} 3. e3 {[%clk 0:02:59.1]} 3... g6 {[%clk 0:02:52.9]} 4. b3
{[%clk 0:02:58.2]} 4... Bg7 {[%clk 0:02:52.2]} 5. Bb2 {[%clk 0:02:58.5]} 5...
Ne4 {[%clk 0:02:50]} 6. Nbd2 {[%clk 0:02:57.9]} 6... Qa5 {[%clk 0:02:49.2]} 7.
Bd3 {[%clk 0:02:46.5]} 7... d5 {[%clk 0:02:45]} 8. O-O {[%clk 0:02:45.3]} 8...
Nxd2 {[%clk 0:02:42.3]} 9. Nxd2 {[%clk 0:02:41.3]} 9... cxd4 {[%clk 0:02:41]}
10. exd4 {[%clk 0:02:40.9]} 10... Nc6 {[%clk 0:02:40.5]} 11. c3 {[%clk
0:02:36.9]} 11... O-O {[%clk 0:02:39.4]} 12. Re1 {[%clk 0:02:37.1]} 12... Re8
{[%clk 0:02:33.6]} 13. a4 {[%clk 0:02:31.7]} 13... Bd7 {[%clk 0:02:27.7]} 14.
Nf3 {[%clk 0:02:30.6]} 14... Bg4 {[%clk 0:02:18.6]} 15. h3 {[%clk 0:02:30.4]}
15... Bxf3 {[%clk 0:02:17.7]} 16. Qxf3 {[%clk 0:02:31.3]} 16... e5 {[%clk
0:02:15.9]} 17. dxe5 {[%clk 0:02:16.1]} 17... Nxe5 {[%clk 0:02:13.9]} 18. Qd1
{[%clk 0:01:59.4]} 18... Re6 {[%clk 0:02:09.1]} 19. Be2 {[%clk 0:01:48.8]} 19...
Rd8 {[%clk 0:02:04.9]} 20. Qc2 {[%clk 0:00:43.6]} 20... a6 {[%clk 0:01:53.4]}
21. Rad1 {[%clk 0:00:39.5]} 21... Rde8 {[%clk 0:01:41.3]} 22. b4 {[%clk
0:00:37.4]} 22... Qd8 {[%clk 0:01:19]} 23. Qd2 {[%clk 0:00:37.3]} 23... Nc6
{[%clk 0:01:11.3]} 24. Bf1 {[%clk 0:00:27.8]} 24... Bh6 {[%clk 0:00:59.7]} 25.
Rxe6 {[%clk 0:00:22.8]} 25... Bxd2 {[%clk 0:00:58.3]} 26. Rxe8+ {[%clk
0:00:22.7]} 26... Qxe8 {[%clk 0:00:56.7]} 27. Rxd2 {[%clk 0:00:20.9]} 27... Qe4
{[%clk 0:00:54]} 28. c4 {[%clk 0:00:18.6]} 28... dxc4 {[%clk 0:00:47.5]} 29. Re2
{[%clk 0:00:16.8]} 29... Qxe2 {[%clk 0:00:37.8]} 30. Bxe2 {[%clk 0:00:17.7]}
30... b5 {[%clk 0:00:34.9]} 31. axb5 {[%clk 0:00:17.5]} 31... axb5 {[%clk
0:00:34.8]} 32. Bc3 {[%clk 0:00:18.1]} 32... Kf8 {[%clk 0:00:30]} 33. Bf3 {[%clk
0:00:15.4]} 33... Ne7 {[%clk 0:00:29]} 34. Bf6 {[%clk 0:00:13.4]} 34... Ng8
{[%clk 0:00:24.6]} 35. Bd4 {[%clk 0:00:12.7]} 35... Ke7 {[%clk 0:00:21.5]} 36.
Bc6 {[%clk 0:00:10.3]} 36... Kd6 {[%clk 0:00:21.5]} 37. Bxb5 {[%clk 0:00:10.3]}
37... Kd5 {[%clk 0:00:21.6]} 38. Bc3 {[%clk 0:00:10.5]} 38... Ne7 {[%clk
0:00:20.4]} 39. Be8 {[%clk 0:00:10.4]} 39... f5 {[%clk 0:00:20]} 40. Bf7+ {[%clk
0:00:09.3]} 40... Kc6 {[%clk 0:00:17.6]} 41. Bxc4 {[%clk 0:00:09.4]} 41... Nc8
{[%clk 0:00:17.8]} 42. Kf1 {[%clk 0:00:09.3]} 42... Nb6 {[%clk 0:00:17.4]} 43.
Bb3 {[%clk 0:00:09.2]} 1-0

[Event "Early-Titled-Tuesday-Blitz-March-19-2024"]
[Site "Chess.com"]
[Date "2024.03.19"]
[Round "11"]
[White "xasid81"]
[Black "Aradhya2000"]
[Result "0-1"]
[WhiteElo "2591"]
[BlackElo "2737"]
[TimeControl "180+1"]
[EndTime "10:06:46 PDT"]
[Termination "Aradhya2000 won on time"]

1. Nf3 {[%clk 0:03:00.9]} 1... Nf6 {[%clk 0:02:59.8]} 2. g3 {[%clk 0:02:59.2]}
2... g6 {[%clk 0:03:00.1]} 3. Bg2 {[%clk 0:03:00.1]} 3... Bg7 {[%clk 0:03:00.9]}
4. O-O {[%clk 0:03:01]} 4... O-O {[%clk 0:03:01.6]} 5. b3 {[%clk 0:03:00.7]}
5... b6 {[%clk 0:02:58.7]} 6. Bb2 {[%clk 0:03:00.6]} 6... Bb7 {[%clk 0:02:59.2]}
7. e3 {[%clk 0:03:01.2]} 7... c5 {[%clk 0:02:59.1]} 8. d4 {[%clk 0:03:01.6]}
8... cxd4 {[%clk 0:02:53.1]} 9. Nxd4 {[%clk 0:03:00.8]} 9... Nc6 {[%clk
0:02:49.1]} 10. Nxc6 {[%clk 0:02:58.6]} 10... dxc6 {[%clk 0:02:49.1]} 11. Qxd8
{[%clk 0:02:57]} 11... Rfxd8 {[%clk 0:02:50]} 12. Na3 {[%clk 0:02:57.4]} 12...
Nd5 {[%clk 0:02:41.7]} 13. Bxg7 {[%clk 0:02:56.6]} 13... Kxg7 {[%clk 0:02:42.6]}
14. Nc4 {[%clk 0:02:53.1]} 14... Nc3 {[%clk 0:02:40.4]} 15. a4 {[%clk
0:02:49.7]} 15... Rac8 {[%clk 0:02:24.6]} 16. a5 {[%clk 0:02:46.5]} 16... b5
{[%clk 0:02:25.1]} 17. a6 {[%clk 0:02:46]} 17... Ba8 {[%clk 0:02:25.6]} 18. Na5
{[%clk 0:02:45.5]} 18... Rd2 {[%clk 0:02:25.5]} 19. Bf3 {[%clk 0:02:30.6]} 19...
Rxc2 {[%clk 0:02:25.6]} 20. Rfc1 {[%clk 0:02:30.2]} 20... Rxc1+ {[%clk
0:02:24.6]} 21. Rxc1 {[%clk 0:02:30.7]} 21... b4 {[%clk 0:02:24.9]} 22. Rc2
{[%clk 0:02:24.7]} 22... e5 {[%clk 0:02:03.6]} 23. Rd2 {[%clk 0:02:09.9]} 23...
e4 {[%clk 0:02:00.5]} 24. Bg4 {[%clk 0:01:56.4]} 24... Re8 {[%clk 0:01:29.3]}
25. Rd7 {[%clk 0:01:48.3]} 25... Nb5 {[%clk 0:01:21.5]} 26. Be2 {[%clk 0:01:21]}
26... Rb8 {[%clk 0:01:15.2]} 27. Bc4 {[%clk 0:01:16.6]} 27... Rb6 {[%clk
0:01:15.1]} 28. Rxf7+ {[%clk 0:01:09]} 28... Kh6 {[%clk 0:01:14.8]} 29. Bxb5
{[%clk 0:00:40.6]} 29... cxb5 {[%clk 0:01:11.5]} 30. Rxa7 {[%clk 0:00:39.6]}
30... Bd5 {[%clk 0:01:12.2]} 31. h4 {[%clk 0:00:34.4]} 31... Kh5 {[%clk
0:01:06.3]} 32. Rd7 {[%clk 0:00:22.7]} 32... Ba8 {[%clk 0:01:01.5]} 33. Rxh7+
{[%clk 0:00:20.4]} 33... Kg4 {[%clk 0:01:01.3]} 34. Ra7 {[%clk 0:00:17.9]} 34...
Bd5 {[%clk 0:01:01.4]} 35. Kg2 {[%clk 0:00:17.5]} 35... Kf5 {[%clk 0:00:42.3]}
36. Rd7 {[%clk 0:00:15.8]} 36... Ke6 {[%clk 0:00:38.7]} 37. Ra7 {[%clk
0:00:13.8]} 37... Kf5 {[%clk 0:00:31.4]} 38. Kh3 {[%clk 0:00:09.1]} 38... Be6
{[%clk 0:00:29.6]} 39. g4+ {[%clk 0:00:08.5]} 39... Ke5 {[%clk 0:00:29.7]} 40.
Kg3 {[%clk 0:00:09.1]} 40... Bd5 {[%clk 0:00:25.6]} 41. h5 {[%clk 0:00:07.8]}
41... gxh5 {[%clk 0:00:24.6]} 42. gxh5 {[%clk 0:00:08.7]} 42... Kf5 {[%clk
0:00:24.9]} 43. Kh4 {[%clk 0:00:08.6]} 43... Rh6 {[%clk 0:00:22]} 44. Rg7 {[%clk
0:00:01.1]} 44... Kf6 {[%clk 0:00:15.6]} 0-1

[Event "Early-Titled-Tuesday-Blitz-March-19-2024"]
[Site "Chess.com"]
[Date "2024.03.19"]
[Round "11"]
[White "MightyMike_009"]
[Black "Seochesspie"]
[Result "1-0"]
[WhiteElo "2742"]
[BlackElo "2870"]
[TimeControl "180+1"]
[EndTime "10:06:47 PDT"]
[Termination "MightyMike_009 won by resignation"]

1. d4 {[%clk 0:03:00.9]} 1... Nf6 {[%clk 0:03:00.1]} 2. c4 {[%clk 0:03:01]} 2...
e6 {[%clk 0:03:00.4]} 3. Nc3 {[%clk 0:03:01.5]} 3... Bb4 {[%clk 0:03:00.3]} 4.
Bd2 {[%clk 0:03:01.5]} 4... O-O {[%clk 0:02:59.7]} 5. e3 {[%clk 0:03:02]} 5...
b6 {[%clk 0:02:57.6]} 6. Nf3 {[%clk 0:03:01.9]} 6... Bb7 {[%clk 0:02:57.8]} 7.
Bd3 {[%clk 0:03:00.3]} 7... c5 {[%clk 0:02:56.8]} 8. a3 {[%clk 0:02:59.5]} 8...
Bxc3 {[%clk 0:02:53.7]} 9. Bxc3 {[%clk 0:03:00.4]} 9... d6 {[%clk 0:02:52.5]}
10. O-O {[%clk 0:02:55.8]} 10... Nbd7 {[%clk 0:02:52.7]} 11. Qc2 {[%clk
0:02:44.7]} 11... Rc8 {[%clk 0:02:43]} 12. Ng5 {[%clk 0:02:43.1]} 12... h6
{[%clk 0:02:42]} 13. Nh7 {[%clk 0:02:43.5]} 13... Nxh7 {[%clk 0:02:41.7]} 14.
Bxh7+ {[%clk 0:02:43.9]} 14... Kh8 {[%clk 0:02:42.3]} 15. Bd3 {[%clk 0:02:43]}
15... Qg5 {[%clk 0:02:37]} 16. f4 {[%clk 0:02:38.8]} 16... Qe7 {[%clk
0:02:35.9]} 17. Qe2 {[%clk 0:02:25.2]} 17... Rfe8 {[%clk 0:02:27.5]} 18. Rad1
{[%clk 0:02:18.6]} 18... cxd4 {[%clk 0:02:24.3]} 19. exd4 {[%clk 0:02:19.5]}
19... d5 {[%clk 0:02:21.5]} 20. Kh1 {[%clk 0:02:02.8]} 20... dxc4 {[%clk
0:02:19.9]} 21. Bxc4 {[%clk 0:02:03.7]} 21... Nf6 {[%clk 0:02:18.9]} 22. Bb4
{[%clk 0:01:28.7]} 22... Qd7 {[%clk 0:02:17.3]} 23. Bb5 {[%clk 0:01:26]} 23...
Bc6 {[%clk 0:02:17.3]} 24. Ba6 {[%clk 0:01:25.6]} 24... Bb7 {[%clk 0:02:15]} 25.
Bb5 {[%clk 0:01:25.5]} 25... Bc6 {[%clk 0:02:15.3]} 26. Ba6 {[%clk 0:01:25.8]}
26... Rcd8 {[%clk 0:02:14.3]} 27. Bc3 {[%clk 0:01:11.1]} 27... Nd5 {[%clk
0:02:13.1]} 28. Bd3 {[%clk 0:01:05.9]} 28... Rc8 {[%clk 0:02:02.6]} 29. Rc1
{[%clk 0:01:01]} 29... Qd6 {[%clk 0:01:56.1]} 30. Qe5 {[%clk 0:00:56.8]} 30...
Qxe5 {[%clk 0:01:31.4]} 31. fxe5 {[%clk 0:00:56.6]} 31... Kg8 {[%clk 0:01:29.8]}
32. Bd2 {[%clk 0:00:54.7]} 32... Ne7 {[%clk 0:01:27.9]} 33. Ba6 {[%clk
0:00:54.3]} 33... Rcd8 {[%clk 0:01:23.3]} 34. Bb4 {[%clk 0:00:54]} 34... Bd7
{[%clk 0:01:05.4]} 35. Bd6 {[%clk 0:00:50.6]} 35... Bc8 {[%clk 0:00:55.2]} 36.
Bb5 {[%clk 0:00:41]} 36... Bd7 {[%clk 0:00:55.2]} 37. Ba6 {[%clk 0:00:41.2]}
37... Bc8 {[%clk 0:00:55.3]} 38. Bb5 {[%clk 0:00:40.5]} 38... Bd7 {[%clk
0:00:55.5]} 39. Bd3 {[%clk 0:00:40.6]} 39... Nd5 {[%clk 0:00:52]} 40. Rf3 {[%clk
0:00:39.3]} 40... Bc8 {[%clk 0:00:29.8]} 41. Bb5 {[%clk 0:00:37.8]} 41... Bd7
{[%clk 0:00:29.9]} 42. Ba6 {[%clk 0:00:38]} 42... Bc8 {[%clk 0:00:30.2]} 43. Bb5
{[%clk 0:00:37.4]} 43... Bd7 {[%clk 0:00:30.5]} 44. Bd3 {[%clk 0:00:36.7]} 44...
Bc8 {[%clk 0:00:30.3]} 45. Rcf1 {[%clk 0:00:36.3]} 45... f5 {[%clk 0:00:28.6]}
46. exf6 {[%clk 0:00:30.8]} 46... gxf6 {[%clk 0:00:24.4]} 47. Bg6 {[%clk
0:00:26.8]} 47... Ba6 {[%clk 0:00:15.5]} 48. Re1 {[%clk 0:00:24.3]} 48... Rxd6
{[%clk 0:00:13.5]} 49. Bxe8 {[%clk 0:00:24.6]} 49... f5 {[%clk 0:00:11.9]} 50.
Ba4 {[%clk 0:00:23.4]} 50... Kf8 {[%clk 0:00:11.6]} 51. Bb3 {[%clk 0:00:23.5]}
51... Ke7 {[%clk 0:00:11.5]} 52. Rxf5 {[%clk 0:00:20.7]} 1-0

[Event "Early-Titled-Tuesday-Blitz-March-19-2024"]
[Site "Chess.com"]
[Date "2024.03.19"]
[Round "11"]
[White "Dewarfd"]
[Black "ZenBull"]
[Result "0-1"]
[WhiteElo "2091"]
[BlackElo "2276"]
[TimeControl "180+1"]
[EndTime "10:06:49 PDT"]
[Termination "ZenBull won by resignation"]

1. c4 {[%clk 0:03:00.9]} 1... e6 {[%clk 0:02:54.7]} 2. g3 {[%clk 0:02:56.3]}
2... c5 {[%clk 0:02:51.2]} 3. Bg2 {[%clk 0:02:55.4]} 3... Nc6 {[%clk 0:02:51.6]}
4. Nc3 {[%clk 0:02:55.1]} 4... Nf6 {[%clk 0:02:51.3]} 5. Nf3 {[%clk 0:02:54.4]}
5... b6 {[%clk 0:02:50.9]} 6. O-O {[%clk 0:02:54.1]} 6... Bb7 {[%clk 0:02:51.2]}
7. a3 {[%clk 0:02:52.3]} 7... a6 {[%clk 0:02:49.9]} 8. Rb1 {[%clk 0:02:49.6]}
8... Be7 {[%clk 0:02:49.4]} 9. d3 {[%clk 0:02:48]} 9... O-O {[%clk 0:02:48.6]}
10. Bg5 {[%clk 0:02:47.2]} 10... h6 {[%clk 0:02:48.1]} 11. Be3 {[%clk
0:02:46.4]} 11... d5 {[%clk 0:02:47]} 12. cxd5 {[%clk 0:02:44.2]} 12... Nxd5
{[%clk 0:02:45.7]} 13. Nxd5 {[%clk 0:02:44.2]} 13... exd5 {[%clk 0:02:46.1]} 14.
d4 {[%clk 0:02:43.7]} 14... c4 {[%clk 0:02:43.2]} 15. Bd2 {[%clk 0:02:23]} 15...
Bf6 {[%clk 0:02:39.2]} 16. e3 {[%clk 0:02:21.7]} 16... Bc8 {[%clk 0:02:34.2]}
17. b3 {[%clk 0:02:21.1]} 17... b5 {[%clk 0:02:30.8]} 18. a4 {[%clk 0:02:18.5]}
18... Bf5 {[%clk 0:02:29.8]} 19. Ra1 {[%clk 0:02:14.4]} 19... Qd7 {[%clk
0:02:20.1]} 20. axb5 {[%clk 0:02:13.7]} 20... axb5 {[%clk 0:02:20.6]} 21. bxc4
{[%clk 0:02:10.1]} 21... bxc4 {[%clk 0:02:18.7]} 22. Bc3 {[%clk 0:02:07.7]}
22... Be4 {[%clk 0:02:08.8]} 23. Ne5 {[%clk 0:02:02.7]} 23... Bxe5 {[%clk
0:02:04]} 24. Bxe4 {[%clk 0:01:39.2]} 24... Bxd4 {[%clk 0:01:43.8]} 25. Bxd4
{[%clk 0:01:18.8]} 25... dxe4 {[%clk 0:01:42.6]} 26. Bc5 {[%clk 0:01:15.7]}
26... Qxd1 {[%clk 0:01:38.8]} 27. Rfxd1 {[%clk 0:01:04.8]} 27... Rxa1 {[%clk
0:01:38.6]} 28. Rxa1 {[%clk 0:01:04.7]} 28... Rc8 {[%clk 0:01:38.5]} 29. Rc1
{[%clk 0:00:58.6]} 29... Ne5 {[%clk 0:01:38]} 30. Bd4 {[%clk 0:00:55.3]} 30...
Nf3+ {[%clk 0:01:37.9]} 31. Kg2 {[%clk 0:00:50.6]} 31... Nxd4 {[%clk 0:01:30.4]}
32. exd4 {[%clk 0:00:50.4]} 32... Kf8 {[%clk 0:01:29]} 33. Kf1 {[%clk
0:00:50.6]} 33... Ke7 {[%clk 0:01:26.3]} 34. Ke2 {[%clk 0:00:50.3]} 34... Ke6
{[%clk 0:01:26.8]} 35. Ke3 {[%clk 0:00:42]} 35... f5 {[%clk 0:01:20.1]} 36. g4
{[%clk 0:00:23.3]} 36... g6 {[%clk 0:01:18.5]} 37. h4 {[%clk 0:00:20]} 37... Kd5
{[%clk 0:01:06.7]} 38. h5 {[%clk 0:00:13.8]} 38... fxg4 {[%clk 0:01:01.6]} 39.
hxg6 {[%clk 0:00:13.3]} 39... Rg8 {[%clk 0:01:01.3]} 40. Ra1 {[%clk 0:00:10.6]}
40... c3 {[%clk 0:00:58.3]} 41. Ra5+ {[%clk 0:00:10.7]} 41... Kc4 {[%clk
0:00:58.5]} 42. Rc5+ {[%clk 0:00:10.3]} 42... Kb3 {[%clk 0:00:58.7]} 43. Kxe4
{[%clk 0:00:10.1]} 43... c2 {[%clk 0:00:52.7]} 44. Kd3 {[%clk 0:00:08.6]} 44...
g3 {[%clk 0:00:32.7]} 45. Rc3+ {[%clk 0:00:02.2]} 45... Kb4 {[%clk 0:00:32.4]}
46. Rxc2 {[%clk 0:00:02.4]} 46... g2 {[%clk 0:00:31.1]} 47. Rc1 {[%clk
0:00:02.5]} 47... Rxg6 {[%clk 0:00:30.5]} 48. Rb1+ {[%clk 0:00:02.9]} 48... Ka5
{[%clk 0:00:29.6]} 49. Rg1 {[%clk 0:00:03.8]} 49... h5 {[%clk 0:00:26.8]} 50.
Ke3 {[%clk 0:00:04.4]} 50... h4 {[%clk 0:00:27]} 51. Kf3 {[%clk 0:00:05.1]}
51... h3 {[%clk 0:00:27.4]} 52. d5 {[%clk 0:00:04.9]} 52... h2 {[%clk
0:00:22.3]} 53. Rxg2 {[%clk 0:00:05.1]} 53... h1=Q {[%clk 0:00:21.3]} 54. d6
{[%clk 0:00:03.9]} 54... Qxg2+ {[%clk 0:00:20.8]} 0-1

[Event "Early-Titled-Tuesday-Blitz-March-19-2024"]
[Site "Chess.com"]
[Date "2024.03.19"]
[Round "11"]
[White "Janh4"]
[Black "ChempionBg"]
[Result "0-1"]
[WhiteElo "2161"]
[BlackElo "2335"]
[TimeControl "180+1"]
[EndTime "10:06:50 PDT"]
[Termination "ChempionBg won on time"]

1. d4 {[%clk 0:03:00.9]} 1... Nf6 {[%clk 0:02:55.9]} 2. Nc3 {[%clk 0:03:00.7]}
2... d5 {[%clk 0:02:50.8]} 3. Bf4 {[%clk 0:03:00.9]} 3... Bf5 {[%clk 0:02:47.5]}
4. f3 {[%clk 0:03:00.7]} 4... c6 {[%clk 0:02:46]} 5. g4 {[%clk 0:02:59.6]} 5...
Bg6 {[%clk 0:02:45.2]} 6. h4 {[%clk 0:03:00]} 6... h6 {[%clk 0:02:44.5]} 7. e3
{[%clk 0:02:59.7]} 7... e6 {[%clk 0:02:42.4]} 8. Bd3 {[%clk 0:02:59.4]} 8...
Bxd3 {[%clk 0:02:41.5]} 9. Qxd3 {[%clk 0:03:00.3]} 9... Bb4 {[%clk 0:02:40]} 10.
Ne2 {[%clk 0:02:59.9]} 10... Nbd7 {[%clk 0:02:38.7]} 11. O-O-O {[%clk
0:02:58.1]} 11... Qe7 {[%clk 0:02:34.8]} 12. g5 {[%clk 0:02:56.3]} 12... Nh5
{[%clk 0:02:26.5]} 13. g6 {[%clk 0:02:27.7]} 13... O-O-O {[%clk 0:02:20.8]} 14.
gxf7 {[%clk 0:02:25.9]} 14... Qxf7 {[%clk 0:02:19.4]} 15. Rdg1 {[%clk
0:02:12.8]} 15... Nxf4 {[%clk 0:02:15.9]} 16. Nxf4 {[%clk 0:02:11]} 16... e5
{[%clk 0:02:13.9]} 17. Ng6 {[%clk 0:01:43.9]} 17... Rhe8 {[%clk 0:02:10.3]} 18.
dxe5 {[%clk 0:01:43.2]} 18... Nxe5 {[%clk 0:02:03.9]} 19. Nxe5 {[%clk
0:01:41.9]} 19... Rxe5 {[%clk 0:02:03.8]} 20. Qd4 {[%clk 0:01:42.2]} 20... Bxc3
{[%clk 0:01:52.6]} 21. Qxc3 {[%clk 0:01:26.1]} 21... Rde8 {[%clk 0:01:52]} 22.
e4 {[%clk 0:00:53.9]} 22... dxe4 {[%clk 0:01:37.1]} 23. fxe4 {[%clk 0:00:53.6]}
23... Qxa2 {[%clk 0:01:32.2]} 24. b3 {[%clk 0:00:42.3]} 24... Qa3+ {[%clk
0:01:05]} 25. Kd2 {[%clk 0:00:33.2]} 25... Rxe4 {[%clk 0:00:53.3]} 26. Re1
{[%clk 0:00:29.7]} 26... Qd6+ {[%clk 0:00:25.1]} 27. Kc1 {[%clk 0:00:24.6]}
27... Rxe1+ {[%clk 0:00:21.1]} 28. Rxe1 {[%clk 0:00:24.5]} 28... Qf4+ {[%clk
0:00:18]} 29. Kb2 {[%clk 0:00:20.3]} 29... Rxe1 {[%clk 0:00:17.2]} 30. Qxe1
{[%clk 0:00:20.2]} 30... Kd7 {[%clk 0:00:16.4]} 31. Qd1+ {[%clk 0:00:14.3]}
31... Qd6 {[%clk 0:00:14]} 32. Qh5 {[%clk 0:00:13.1]} 32... Qf6+ {[%clk
0:00:11.6]} 33. Kb1 {[%clk 0:00:12.6]} 33... b6 {[%clk 0:00:10.3]} 34. Qg4+
{[%clk 0:00:12.5]} 34... Kc7 {[%clk 0:00:10.2]} 35. Qg3+ {[%clk 0:00:12.3]}
35... Kb7 {[%clk 0:00:09.9]} 36. Qg4 {[%clk 0:00:11.7]} 36... Qe7 {[%clk
0:00:08.8]} 37. Qg6 {[%clk 0:00:08.1]} 37... a5 {[%clk 0:00:08.6]} 38. Ka2
{[%clk 0:00:05.1]} 38... Kc7 {[%clk 0:00:07.1]} 39. Qg3+ {[%clk 0:00:04.8]}
39... Kb7 {[%clk 0:00:06.7]} 40. Qg6 {[%clk 0:00:05]} 40... b5 {[%clk
0:00:06.5]} 41. Qg1 {[%clk 0:00:02.2]} 41... Ka6 {[%clk 0:00:05.3]} 0-1